fUST/lending_fUST_20240714
["ID","MTS","AMOUNT","RATE_DAILY","PERIOD"]
[332072989,1720950642522,-500.0,0.00024931,2]
[332072991,1720950642531,-600.48941339,0.00024931,2]
[332072993,1720950642542,-500.0,0.00024931,2]
[332072995,1720950642553,-522.41337688,0.00024931,2]
[332072998,1720950642562,-500.0,0.00024931,2]
[332073001,1720950642572,-500.0,0.00024931,2]
[332073003,1720950642586,-500.0,0.00024931,2]
[332073005,1720950642596,-505.2262162,0.00024931,2]
[332073006,1720950642606,-500.0,0.00024931,2]
[332073008,1720950642617,-500.0,0.00024931,2]
[332073010,1720950642627,-500.0,0.00024931,2]
[332073012,1720950642636,-500.0,0.00024931,2]
[332073016,1720950642720,-500.0,0.00024931,2]
[332073018,1720950642730,-500.0,0.00024931,2]
[332073020,1720950642740,-500.0,0.00024931,2]
[332073021,1720950642749,-500.0,0.00024931,2]
[332073023,1720950642760,-500.0,0.00024931,2]
[332073024,1720950642769,-500.0,0.00024931,2]
[332073026,1720950642779,-500.0,0.00024931,2]
[332073028,1720950642788,-645.20884031,0.00024931,2]
[332073029,1720950642797,-500.0,0.00024931,2]
[332073031,1720950642807,-500.0,0.00024931,2]
[332073033,1720950642816,-500.0,0.00024931,2]
[332073034,1720950642825,-500.0,0.00024931,2]
[332073035,1720950642835,-500.0,0.00024931,2]
[332073036,1720950642844,-500.0,0.00024931,2]
[332073037,1720950642855,-501.2984015,0.00024931,2]
[332073038,1720950642864,-500.0,0.00024931,2]
[332073039,1720950642874,-500.0,0.00024931,2]
[332073040,1720950642883,-500.0,0.00024931,2]
[332073041,1720950642893,-500.0,0.00024931,2]
[332073042,1720950642903,-500.0,0.00024931,2]
[332073043,1720950642912,-232.25753318,0.00024931,2]
[332073044,1720950642922,-547.90379251,0.00024931,2]
[332073045,1720950642931,-540.05567798,0.00024931,2]
[332073046,1720950642941,-500.0,0.00024931,2]
[332073047,1720950642951,-500.0,0.00024931,2]
[332073048,1720950642961,-500.0,0.00024931,2]
[332073049,1720950642971,-500.0,0.00024931,2]
[332073050,1720950642981,-500.0,0.00024931,2]
[332073051,1720950642990,-500.0,0.00024931,4]
[332073052,1720950643001,-500.0,0.00024931,2]
[332073053,1720950643010,-500.0,0.00024931,2]
[332073054,1720950643020,-500.0,0.00024931,2]
[332073055,1720950643031,-500.0,0.00024931,2]
[332073056,1720950643040,-500.0,0.00024931,2]
[332073057,1720950643050,-407.34867025,0.00024931,2]
[332073058,1720950643060,-500.0,0.00024931,2]
[332073059,1720950643069,-500.2480666,0.00024931,2]
[332073060,1720950643079,-500.0,0.00024931,2]
[332073061,1720950643088,-500.0,0.00024931,2]
[332073062,1720950643099,-500.0,0.00024931,2]
[332073063,1720950643109,-500.0,0.00024931,2]
[332073064,1720950643119,-500.0,0.00024931,2]
[332073065,1720950643129,-500.0,0.00024931,2]
[332073066,1720950643141,-500.0,0.00024931,2]
[332073067,1720950643151,-318.94401676,0.00024931,2]
[332073068,1720950643161,-500.0,0.00024931,2]
[332073069,1720950643170,-500.0,0.00024931,2]
[332073070,1720950643180,-500.0,0.00024931,2]
[332073071,1720950643190,-500.0,0.00024931,2]
[332073072,1720950643200,-500.0,0.00024931,2]
[332073073,1720950643210,-500.0,0.00024931,2]
[332073074,1720950643220,-500.0,0.00024931,2]
[332073075,1720950643231,-500.0,0.00024931,2]
[332073076,1720950643242,-500.0,0.00024931,2]
[332073077,1720950643251,-500.0,0.00024931,2]
[332073078,1720950643260,-500.0,0.00024931,2]
[332073079,1720950643271,-500.0,0.00024931,2]
[332073080,1720950643281,-500.0,0.00024931,2]
[332073081,1720950643291,-500.0,0.00024931,2]
[332073082,1720950643301,-334.40980495,0.00024931,2]
[332073083,1720950643310,-500.0,0.00024931,2]
[332073084,1720950643319,-500.0,0.00024931,2]
[332073085,1720950643329,-500.0,0.00024931,2]
[332073086,1720950643339,-500.0,0.00024931,2]
[332073087,1720950643349,-500.0,0.00024931,2]
[332073088,1720950643359,-500.0,0.00024931,2]
[332073089,1720950643368,-540.091805,0.00024931,2]
[332073090,1720950643377,-500.0,0.00024931,2]
[332073091,1720950643387,-500.0,0.00024931,2]
[332073093,1720950643397,-500.0,0.00024931,2]
[332073095,1720950643407,-500.0,0.00024931,2]
[332073097,1720950643419,-500.0,0.00024931,2]
[332073099,1720950643430,-500.0,0.00024931,2]
[332073101,1720950643440,-510.24728581,0.00024931,2]
[332073103,1720950643449,-500.0,0.00024931,2]
[332073105,1720950643459,-610.71161823,0.00024931,2]
[332073107,1720950643469,-500.0,0.00024931,2]
[332073109,1720950643479,-500.0,0.00024931,2]
[332073111,1720950643490,-500.0,0.00024931,2]
[332073113,1720950643499,-500.0,0.00024931,2]
[332073115,1720950643509,-500.0,0.00024931,2]
[332073117,1720950643519,-541.53871979,0.00024931,2]
[332073120,1720950643530,-500.0,0.00024931,2]
[332073122,1720950643540,-500.0,0.00024931,2]
[332073124,1720950643550,-500.0,0.00024931,2]
[332073126,1720950643560,-500.0,0.00024931,2]
[332073128,1720950643571,-500.0,0.00024931,2]
[332073130,1720950643580,-500.0,0.00024931,2]
[332073132,1720950643593,-1500.0,0.00024931,2]
[332073134,1720950643604,-552.42,0.00024931,2]
[332073136,1720950643614,-500.0,0.00024931,2]
[332073138,1720950643627,-500.0,0.00024931,2]
[332073140,1720950643638,-500.0,0.00024931,2]
[332073143,1720950643651,-500.0,0.00024931,2]
[332073145,1720950643661,-500.0,0.00024931,2]
[332073147,1720950643671,-553.31966395,0.00024931,2]
[332073149,1720950643680,-500.0,0.00024931,2]
[332073151,1720950643689,-633.69358454,0.00024931,2]
[332073153,1720950643698,-500.0,0.00024931,2]
[332073155,1720950643708,-565.81997238,0.00024931,2]
[332073157,1720950643719,-500.0,0.00024931,2]
[332073159,1720950643729,-500.0,0.00024931,2]
[332073161,1720950643739,-500.0,0.00024931,2]
[332073163,1720950643749,-500.0,0.00024931,2]
[332073165,1720950643760,-500.0,0.00024931,2]
[332073168,1720950643769,-633.97674964,0.00024931,2]
[332073170,1720950643779,-500.0,0.00024931,2]
[332073172,1720950643788,-500.0,0.00024931,2]
[332073173,1720950643797,-500.0,0.00024931,2]
[332073176,1720950643807,-500.0,0.00024931,2]
[332073178,1720950643816,-500.0,0.00024931,2]
[332073180,1720950643826,-500.0,0.00024931,2]
[332073182,1720950643835,-510.41277995,0.00024931,2]
[332073183,1720950643844,-500.0,0.00024931,2]
[332073185,1720950643854,-500.0,0.00024931,2]
[332073188,1720950643864,-500.0,0.00024931,2]
[332073190,1720950643873,-500.0,0.00024931,2]
[332073192,1720950643883,-1058.31,0.00024931,2]
[332073194,1720950643893,-500.0,0.00024931,2]
[332073196,1720950643903,-500.0,0.00024931,2]
[332073198,1720950643912,-500.0,0.00024931,2]
[332073200,1720950643921,-651.96,0.00024931,2]
[332073202,1720950643930,-500.0,0.00024931,2]
[332073204,1720950643940,-500.0,0.00024931,2]
[332073206,1720950643950,-500.0,0.00024931,2]
[332073208,1720950643959,-500.0,0.00024931,2]
[332073210,1720950643968,-500.0,0.00024931,2]
[332073212,1720950643978,-500.0,0.00024931,2]
[332073214,1720950643988,-500.0,0.00024931,2]
[332073216,1720950643997,-500.0,0.00024931,2]
[332073218,1720950644007,-500.0,0.00024931,2]
[332073220,1720950644016,-500.0,0.00024931,2]
[332073222,1720950644028,-500.0,0.00024931,2]
[332073224,1720950644039,-500.0,0.00024931,2]
[332073226,1720950644051,-500.0,0.00024931,2]
[332073228,1720950644062,-500.0,0.00024931,2]
[332073230,1720950644071,-500.0,0.00024931,2]
[332073233,1720950644081,-4236.53,0.00024931,2]
[332073235,1720950644090,-500.0,0.00024931,2]
[332073237,1720950644099,-500.0,0.00024931,2]
[332073239,1720950644109,-523.91,0.00024931,2]
[332073241,1720950644118,-500.0,0.00024931,2]
[332073242,1720950644127,-500.0,0.00024931,2]
[332073245,1720950644137,-500.0,0.00024931,2]
[332073247,1720950644147,-500.0,0.00024931,2]
[332073249,1720950644157,-500.0,0.00024931,2]
[332073251,1720950644166,-500.0,0.00024931,2]
[332073253,1720950644175,-500.0,0.00024931,2]
[332073255,1720950644185,-500.0,0.00024931,2]
[332073257,1720950644194,-500.0,0.00024931,2]
[332073259,1720950644204,-500.0,0.00024931,2]
[332073261,1720950644213,-500.0,0.00024931,2]
[332073263,1720950644222,-500.0,0.00024931,2]
[332073265,1720950644232,-500.0,0.00024931,2]
[332073267,1720950644241,-500.0,0.00024931,2]
[332073269,1720950644251,-679.94,0.00024931,2]
[332073271,1720950644260,-500.0,0.00024931,2]
[332073273,1720950644271,-500.0,0.00024931,2]
[332073275,1720950644281,-200.0,0.00024931,2]
[332073276,1720950644290,-500.0,0.00024931,2]
[332073278,1720950644299,-500.0,0.00024931,2]
[332073280,1720950644309,-500.0,0.00024931,2]
[332073282,1720950644319,-500.0,0.00024931,2]
[332073284,1720950644328,-508.22040819,0.00024931,2]
[332073286,1720950644337,-500.0,0.00024931,2]
[332073288,1720950644347,-500.0,0.00024931,2]
[332073290,1720950644356,-500.0,0.00024931,2]
[332073292,1720950644365,-500.0,0.00024931,2]
[332073294,1720950644375,-500.0,0.00024931,2]
[332073296,1720950644384,-500.0,0.00024931,2]
[332073298,1720950644393,-500.0,0.00024931,2]
[332073300,1720950644403,-500.0,0.00024931,2]
[332073302,1720950644412,-500.0,0.00024931,2]
[332073304,1720950644422,-500.0,0.00024931,2]
[332073306,1720950644431,-500.0,0.00024931,2]
[332073308,1720950644440,-500.0,0.00024931,2]
[332073310,1720950644449,-500.0,0.00024931,2]
[332073312,1720950644459,-500.0,0.00024931,2]
[332073314,1720950644468,-500.0,0.00024931,2]
[332073316,1720950644477,-200.0,0.00024931,7]
[332073318,1720950644487,-7155.88,0.00024931,2]
[332073320,1720950644498,-500.0,0.00024931,2]
[332073322,1720950644508,-509.00051779,0.00024931,2]
[332073324,1720950644517,-500.0,0.00024931,2]
[332073326,1720950644527,-500.0,0.00024931,2]
[332073328,1720950644538,-500.0,0.00024931,2]
[332073330,1720950644548,-500.0,0.00024931,2]
[332073332,1720950644560,-500.0,0.00024931,2]
[332073334,1720950644569,-500.0,0.00024931,2]
[332073336,1720950644579,-500.0,0.00024931,2]
[332073338,1720950644592,-500.0,0.00024931,2]
[332073340,1720950644603,-500.0,0.00024931,2]
[332073349,1720950644684,-2887.71556416,0.00025195,3]
[332073351,1720950644693,-507.50561512,0.00025205,2]
[332073352,1720950644703,-500.0,0.00025205,2]
[332073354,1720950644712,-500.0,0.00025205,2]
[332073356,1720950644721,-510.67582826,0.00025205,2]
[332073358,1720950644731,-500.0,0.00025205,2]
[332073360,1720950644741,-500.0,0.00025205,2]
[332073363,1720950644752,-246.10631948,0.00025205,2]
[332073365,1720950644763,-500.0,0.00025205,2]
[332073367,1720950644775,-500.0,0.00025205,2]
[332073369,1720950644785,-457.22780411,0.00025205,2]
[332073371,1720950644796,-500.0,0.00025205,2]
[332073373,1720950644805,-500.0,0.00025205,2]
[332073375,1720950644817,-500.0,0.00025205,2]
[332073377,1720950644827,-341.83085772,0.00025205,2]
[332073379,1720950644837,-394.68451402,0.00025205,2]
[332073381,1720950644847,-500.0,0.00025205,4]
[332073383,1720950644858,-500.0,0.00025205,2]
[332073385,1720950644868,-500.0,0.00025205,2]
[332073387,1720950644879,-500.0,0.00025205,2]
[332073389,1720950644888,-609.83564502,0.00025205,2]
[332073391,1720950644898,-567.23,0.00025205,2]
[332073393,1720950644907,-500.0,0.00025205,2]
[332073395,1720950644917,-489.22348685,0.00025205,2]
[332073397,1720950644928,-500.0,0.00025205,2]
[332073399,1720950644938,-500.0,0.00025205,2]
[332073402,1720950644949,-500.0,0.00025205,2]
[332073404,1720950644961,-500.0,0.00025205,2]
[332073406,1720950644971,-496.61226458,0.00025205,2]
[332073408,1720950644980,-500.0,0.00025205,2]
[332073410,1720950644990,-332.28812319,0.00025205,2]
[332073412,1720950645000,-527.69467722,0.00025205,2]
[332073414,1720950645011,-500.0,0.00025205,2]
[332073416,1720950645020,-500.0,0.00025205,2]
[332073418,1720950645031,-500.0,0.00025205,2]
[332073420,1720950645040,-500.0,0.00025205,2]
[332073422,1720950645051,-500.0,0.00025205,2]
[332073424,1720950645060,-500.0,0.00025205,2]
[332073426,1720950645069,-500.0,0.00025205,2]
[332073428,1720950645080,-500.0,0.00025205,2]
[332073430,1720950645090,-500.0,0.00025205,2]
[332073432,1720950645101,-500.0,0.00025205,2]
[332073434,1720950645111,-500.0,0.00025205,2]
[332073437,1720950645122,-314.88810098,0.00025205,2]
[332073439,1720950645132,-500.0,0.00025205,2]
[332073441,1720950645141,-367.15845782,0.00025205,2]
[332073442,1720950645149,-500.0,0.00025205,2]
[332073444,1720950645159,-500.0,0.00025205,2]
[332073446,1720950645168,-500.0,0.00025205,2]
[332073448,1720950645178,-500.0,0.00025205,2]
[332073450,1720950645187,-500.0,0.00025205,2]
[332073453,1720950645197,-500.0,0.00025205,2]
[332073454,1720950645206,-552.42,0.00025205,2]
[332073456,1720950645215,-301.03811008,0.00025205,2]
[332073459,1720950645225,-500.0,0.00025205,2]
[332073460,1720950645234,-500.0,0.00025205,2]
[332073462,1720950645244,-500.0,0.00025205,2]
[332073464,1720950645253,-500.0,0.00025205,2]
[332073466,1720950645262,-500.0,0.00025205,2]
[332073468,1720950645272,-500.0,0.00025205,2]
[332073470,1720950645281,-500.0,0.00025205,2]
[332073472,1720950645291,-500.0,0.00025205,2]
[332073474,1720950645302,-500.0,0.00025205,2]
[332073476,1720950645311,-500.0,0.00025205,2]
[332073478,1720950645321,-500.0,0.00025205,2]
[332073481,1720950645330,-500.0,0.00025205,2]
[332073484,1720950645339,-1058.31,0.00025205,2]
[332073486,1720950645348,-500.0,0.00025205,2]
[332073489,1720950645358,-500.0,0.00025205,2]
[332073492,1720950645367,-651.96,0.00025205,2]
[332073495,1720950645377,-500.0,0.00025205,2]
[332073499,1720950645387,-500.0,0.00025205,2]
[332073502,1720950645396,-500.0,0.00025205,2]
[332073505,1720950645406,-500.0,0.00025205,2]
[332073508,1720950645416,-500.0,0.00025205,2]
[332073511,1720950645426,-500.0,0.00025205,2]
[332073514,1720950645435,-500.0,0.00025205,2]
[332073517,1720950645444,-500.0,0.00025205,2]
[332073519,1720950645454,-500.0,0.00025205,2]
[332073521,1720950645463,-500.0,0.00025205,2]
[332073525,1720950645473,-4236.53,0.00025205,2]
[332073528,1720950645482,-500.0,0.00025205,2]
[332073531,1720950645492,-500.0,0.00025205,2]
[332073533,1720950645501,-505.37007845,0.00025205,2]
[332073535,1720950645510,-500.0,0.00025205,2]
[332073538,1720950645520,-500.0,0.00025205,2]
[332073542,1720950645529,-500.0,0.00025205,2]
[332073545,1720950645539,-500.0,0.00025205,2]
[332073548,1720950645548,-500.0,0.00025205,2]
[332073551,1720950645559,-500.0,0.00025205,2]
[332073554,1720950645568,-500.0,0.00025205,2]
[332073557,1720950645578,-679.94,0.00025205,2]
[332073560,1720950645592,-500.0,0.00025205,2]
[332073563,1720950645601,-200.0,0.00025205,2]
[332073566,1720950645611,-500.0,0.00025205,2]
[332073569,1720950645620,-500.0,0.00025205,2]
[332073572,1720950645633,-500.0,0.00025205,2]
[332073575,1720950645643,-500.0,0.00025205,2]
[332073578,1720950645652,-482.10729164,0.00025205,2]
[332073580,1720950645663,-500.0,0.00025205,2]
[332073583,1720950645673,-500.0,0.00025205,2]
[332073586,1720950645683,-500.0,0.00025205,2]
[332073590,1720950645692,-500.0,0.00025205,2]
[332073592,1720950645702,-500.0,0.00025205,2]
[332073595,1720950645711,-500.0,0.00025205,2]
[332073598,1720950645720,-200.0,0.00025205,7]
[332073600,1720950645732,-7155.88,0.00025205,2]
[332073602,1720950645741,-500.0,0.00025205,2]
[332073604,1720950645751,-500.0,0.00025205,2]
[332073606,1720950645760,-500.0,0.00025205,2]
[332073608,1720950645774,-500.0,0.00025205,2]
[332073610,1720950645784,-500.0,0.00025205,2]
[332073612,1720950645793,-500.0,0.00025205,2]
[332073614,1720950645803,-500.0,0.00025205,2]
[332073616,1720950645813,-500.0,0.00025205,2]
[332073617,1720950645823,-2887.71556416,0.00025469,3]
[332073618,1720950645834,-500.0,0.00025479,2]
[332073619,1720950645843,-599.46,0.00025479,2]
[332073620,1720950645853,-487.06685843,0.00025479,2]
[332073621,1720950645864,-500.0,0.00025479,2]
[332073622,1720950645875,-500.0,0.00025479,2]
[332073623,1720950645884,-500.0,0.00025479,4]
[332073624,1720950645893,-500.0,0.00025479,2]
[332073625,1720950645903,-500.0,0.00025479,2]
[332073626,1720950645914,-162.94368037,0.00025479,2]
[332073628,1720950645925,-500.0,0.00025479,2]
[332073630,1720950645935,-500.0,0.00025479,2]
[332073632,1720950645946,-500.0,0.00025479,2]
[332073634,1720950645957,-500.0,0.00025479,2]
[332073636,1720950645967,-625.83528691,0.00025479,2]
[332073638,1720950645977,-500.0,0.00025479,2]
[332073640,1720950645986,-500.0,0.00025479,2]
[332073642,1720950645996,-500.0,0.00025479,2]
[332073644,1720950646007,-500.0,0.00025479,2]
[332073646,1720950646017,-500.0,0.00025479,2]
[332073648,1720950646028,-500.0,0.00025479,2]
[332073650,1720950646038,-552.42,0.00025479,2]
[332073652,1720950646046,-500.0,0.00025479,2]
[332073654,1720950646056,-190.1290173,0.00025479,2]
[332073656,1720950646065,-500.0,0.00025479,2]
[332073658,1720950646074,-500.0,0.00025479,2]
[332073660,1720950646084,-500.0,0.00025479,2]
[332073662,1720950646093,-500.0,0.00025479,2]
[332073663,1720950646102,-1058.31,0.00025479,2]
[332073665,1720950646111,-651.96,0.00025479,2]
[332073667,1720950646122,-500.0,0.00025479,2]
[332073669,1720950646132,-500.0,0.00025479,2]
[332073671,1720950646142,-500.0,0.00025479,2]
[332073673,1720950646151,-500.0,0.00025479,2]
[332073675,1720950646161,-500.0,0.00025479,2]
[332073677,1720950646171,-4236.53,0.00025479,2]
[332073679,1720950646180,-500.0,0.00025479,2]
[332073681,1720950646190,-500.0,0.00025479,2]
[332073684,1720950646199,-500.0,0.00025479,2]
[332073687,1720950646208,-500.0,0.00025479,2]
[332073690,1720950646219,-500.0,0.00025479,2]
[332073694,1720950646228,-500.0,0.00025479,2]
[332073697,1720950646237,-561.89532389,0.00025479,2]
[332073699,1720950646247,-679.94,0.00025479,2]
[332073701,1720950646256,-500.0,0.00025479,2]
[332073703,1720950646266,-500.0,0.00025479,2]
[332073705,1720950646276,-285.48338225,0.00025479,2]
[332073707,1720950646285,-500.0,0.00025479,2]
[332073710,1720950646294,-500.0,0.00025479,2]
[332073713,1720950646304,-500.0,0.00025479,2]
[332073716,1720950646313,-500.0,0.00025479,2]
[332073719,1720950646322,-500.0,0.00025479,2]
[332073722,1720950646332,-200.0,0.00025479,7]
[332073725,1720950646341,-7155.88,0.00025479,2]
[332073728,1720950646350,-500.0,0.00025479,2]
[332073731,1720950646359,-500.0,0.00025479,2]
[332073734,1720950646369,-500.0,0.00025479,2]
[332073737,1720950646378,-2887.71556416,0.00025491,3]
[332073740,1720950646388,-30000.0,0.00025501,2]
[332073743,1720950646397,-9106.00261802,0.00025753,5]
[332073746,1720950646406,-500.0,0.00025753,2]
[332073756,1720950646483,-197.21059328,0.00025753,2]
[332073758,1720950646493,-500.0,0.00025753,4]
[332073760,1720950646504,-216.44586164,0.00025753,2]
[332073762,1720950646517,-500.0,0.00025753,2]
[332073764,1720950646528,-500.0,0.00025753,2]
[332073766,1720950646539,-500.0,0.00025753,2]
[332073768,1720950646548,-500.0,0.00025753,2]
[332073770,1720950646557,-500.0,0.00025753,2]
[332073772,1720950646567,-500.0,0.00025753,2]
[332073774,1720950646576,-552.42,0.00025753,2]
[332073776,1720950646588,-377.12976595,0.00025753,2]
[332073778,1720950646598,-539.79,0.00025753,2]
[332073780,1720950646609,-500.0,0.00025753,2]
[332073782,1720950646618,-500.0,0.00025753,2]
[332073784,1720950646629,-1058.31,0.00025753,2]
[332073787,1720950646639,-500.0,0.00025753,2]
[332073789,1720950646650,-651.96,0.00025753,2]
[332073791,1720950646659,-500.0,0.00025753,2]
[332073793,1720950646671,-500.0,0.00025753,2]
[332073795,1720950646681,-500.0,0.00025753,2]
[332073797,1720950646690,-500.0,0.00025753,2]
[332073799,1720950646699,-500.0,0.00025753,2]
[332073801,1720950646708,-4236.53,0.00025753,2]
[332073803,1720950646717,-500.0,0.00025753,2]
[332073805,1720950646726,-500.0,0.00025753,2]
[332073807,1720950646735,-553.32,0.00025753,2]
[332073808,1720950646745,-679.94,0.00025753,2]
[332073810,1720950646754,-249.0152694,0.00025753,2]
[332073812,1720950646763,-500.0,0.00025753,2]
[332073814,1720950646773,-315.60048944,0.00025753,2]
[332073816,1720950646782,-500.0,0.00025753,2]
[332073818,1720950646792,-7155.88,0.00025753,2]
[332073820,1720950646801,-500.0,0.00025753,2]
[332073822,1720950646810,-500.0,0.00025753,2]
[332073824,1720950646819,-379.6170663,0.00025978,2]
[332073826,1720950646828,-379.6170663,0.00026015,2]
[332073828,1720950646837,-2887.71556416,0.00026017,3]
[332073830,1720950646847,-500.0,0.00026027,2]
[332073832,1720950646856,-500.0,0.00026027,4]
[332073834,1720950646866,-500.0,0.00026027,2]
[332073836,1720950646875,-500.0,0.00026027,2]
[332073838,1720950646884,-500.0,0.00026027,2]
[332073840,1720950646893,-276.56657518,0.00026027,2]
[332073841,1720950646902,-500.0,0.00026027,2]
[332073843,1720950646911,-552.42,0.00026027,2]
[332073845,1720950646920,-500.0,0.00026027,2]
[332073847,1720950646930,-500.0,0.00026027,3]
[332073849,1720950646939,-504.87051403,0.00026027,3]
[332073851,1720950646950,-500.0,0.00026027,2]
[332073853,1720950646959,-500.0,0.00026027,2]
[332073855,1720950646969,-1058.31,0.00026027,2]
[332073856,1720950646978,-651.96,0.00026027,2]
[332073858,1720950646987,-500.0,0.00026027,2]
[332073860,1720950646997,-542.11979795,0.00026027,2]
[332073862,1720950647007,-500.0,0.00026027,2]
[332073864,1720950647016,-500.0,0.00026027,2]
[332073866,1720950647026,-4236.53,0.00026027,2]
[332073868,1720950647036,-500.0,0.00026027,2]
[332073870,1720950647045,-679.94,0.00026027,2]
[332073872,1720950647054,-500.0,0.00026027,2]
[332073874,1720950647064,-4020.8104829,0.00026027,2]
[332073928,1720950647561,-500.0,0.00024931,2]
[332073930,1720950647570,-371.21090127,0.00025205,2]
[332073932,1720950647580,-3135.0695171,0.00026027,2]
[332073934,1720950647594,-150.65189833,0.00026085,2]
[332073936,1720950647604,-160.22197401,0.00026095,2]
[332073938,1720950647614,-164.4162941,0.00026129,2]
[332073940,1720950647624,-160.22197401,0.00026174,2]
[332073943,1720950647637,-759.8014288,0.00026198,2]
[332073945,1720950647648,-379.6170663,0.00026263,2]
[332073947,1720950647657,-379.6170663,0.00026268,2]
[332073949,1720950647667,-759.8014288,0.00026269,2]
[332073951,1720950647677,-500.0,0.00026301,2]
[332073952,1720950647686,-500.0,0.00026301,4]
[332073954,1720950647695,-500.0,0.00026301,2]
[332073956,1720950647705,-567.97178607,0.00026301,2]
[332073958,1720950647714,-552.42,0.00026301,2]
[332073960,1720950647723,-500.0,0.00026301,2]
[332073962,1720950647733,-224.40730886,0.00026301,2]
[332073964,1720950647742,-500.0,0.00026301,2]
[332073966,1720950647752,-1058.31,0.00026301,2]
[332073968,1720950647761,-651.96,0.00026301,2]
[332073970,1720950647771,-500.0,0.00026301,2]
[332073972,1720950647781,-500.0,0.00026301,2]
[332073974,1720950647790,-500.0,0.00026301,2]
[332073976,1720950647800,-4236.53,0.00026301,2]
[332073978,1720950647809,-500.0,0.00026301,2]
[332073980,1720950647818,-679.94,0.00026301,2]
[332073982,1720950647827,-500.0,0.00026301,2]
[332073984,1720950647837,-7155.88,0.00026301,2]
[332073986,1720950647846,-154.59445059,0.00026382,2]
[332073988,1720950647856,-759.8014288,0.0002642,2]
[332073990,1720950647865,-560.70317468,0.00026463,2]
[332073991,1720950647875,-150.0,0.000265,2]
[332073993,1720950647885,-379.6170663,0.00026552,2]
[332073995,1720950647894,-2887.71556416,0.00026565,3]
[332073997,1720950647903,-500.0,0.00026575,2]
[332073999,1720950647913,-500.0,0.00026575,4]
[332074001,1720950647922,-152.1525561,0.00026575,2]
[332074003,1720950647931,-552.42,0.00026575,2]
[332074005,1720950647940,-500.0,0.00026575,2]
[332074007,1720950647949,-500.0,0.00026575,2]
[332074008,1720950647959,-1058.31,0.00026575,2]
[332074010,1720950647967,-651.96,0.00026575,2]
[332074012,1720950647977,-500.0,0.00026575,2]
[332074014,1720950647986,-500.0,0.00026575,2]
[332074016,1720950647995,-500.0,0.00026575,2]
[332074018,1720950648004,-4236.53,0.00026575,2]
[332074020,1720950648013,-500.0,0.00026575,2]
[332074022,1720950648023,-679.94,0.00026575,2]
[332074024,1720950648032,-500.0,0.00026575,2]
[332074025,1720950648043,-7155.88,0.00026575,2]
[332074028,1720950648052,-159.54345515,0.00026641,2]
[332074030,1720950648061,-500.0,0.00026849,2]
[332074032,1720950648071,-500.0,0.00026849,4]
[332074034,1720950648080,-552.42,0.00026849,2]
[332074036,1720950648090,-500.0,0.00026849,2]
[332074038,1720950648099,-500.0,0.00026849,2]
[332074040,1720950648108,-1058.31,0.00026849,2]
[332074048,1720950648117,-651.96,0.00026849,2]